bitfinex-derivatives/quotes_ETHF0:USTF0_20250417
["timestamp","ask_amount","ask_price","bid_price","bid_amount"]
[1744894007052,2.85695,1600.0,1599.9,0.00937792]
[1744894007847,1.25058,1599.7,1599.6,8.26396405]
[1744894008646,2.85718,1599.7,1599.6,8.26396405]
[1744894009742,11.06498,1599.7,1599.6,6.91247405]
[1744894009947,11.06498,1599.7,1599.6,5.16228612]
[1744894010148,11.06498,1599.7,1599.6,3.71668612]
[1744894010543,11.06498,1599.7,1599.6,2.43889612]
[1744894010754,1.25066,1599.6,1599.5,0.00937792]
[1744894010947,3.74626,1599.6,1599.5,0.00937792]
[1744894011148,8.74626,1599.6,1599.5,0.00937792]
[1744894011849,8.74626,1599.6,1599.5,7.92e-06]
[1744894013258,1.25105,1599.1,1599.0,13.51396148]
[1744894013453,5.43005,1599.1,1599.0,10.71272148]
[1744894013754,1.25121,1598.9,1598.8,38.75098268]
[1744894013952,4.45901,1598.9,1598.8,38.75098268]
[1744894014147,9.45901,1598.9,1598.8,35.40197268]
[1744894014348,10.31891,1598.9,1598.8,33.59418268]
[1744894014759,10.31891,1598.9,1598.8,32.29810268]
[1744894014957,1.25128,1598.8,1598.7,0.00937792]
[1744894015156,7.03638,1598.8,1598.7,0.00937792]
[1744894019857,7.90798,1598.8,1598.7,0.00937792]
[1744894020360,7.90798,1598.8,1598.7,7.92e-06]
[1744894022357,3.72898,1598.8,1598.7,7.92e-06]
[1744894022555,2.85738,1598.8,1598.7,5.00000792]
[1744894022756,0.00937792,1598.9,1598.7,5.00000792]
[1744894023061,1.25128,1598.8,1598.7,7.92e-06]
[1744894023762,10.38083332,1599.5,1599.0,3.12778]
[1744894023966,11.63157332,1599.5,1599.4,3.2078]
[1744894024862,11.63157332,1599.5,1599.4,4.45861]
[1744894025864,11.63157332,1599.5,1599.4,3.2078]
[1744894026159,13.31897332,1599.5,1599.4,3.2078]
[1744894027759,2.93814,1599.5,1599.4,3.2078]
[1744894028261,5.43810792,1599.6,1599.5,1.25074]
[1744894028463,1.25074,1599.5,1599.4,3.2078]
[1744894029065,3.12713,1599.4,1599.2,4.45877]
[1744894029261,1.25089,1599.3,1599.2,4.45877]
[1744894029667,1.25089,1599.3,1599.2,9.45877]
[1744894030968,1.25089,1599.3,1599.2,4.45877]
[1744894032368,1.25089,1599.3,1599.2,3.2078]
[1744894032669,1.25087,1599.4,1599.3,1.25084]
[1744894032862,1.25089,1599.3,1599.2,4.4587]
[1744894033061,1.25089,1599.3,1599.2,3.2078]
[1744894033262,1.25089,1599.3,1599.2,4.45877]
[1744894034171,1.25089,1599.3,1599.2,3.2078]
[1744894034472,1.25089,1599.3,1599.2,4.45877]
[1744894036470,1.25087,1599.4,1599.3,1.25089]
[1744894036676,1.25081,1599.5,1599.4,1.25078]
[1744894036875,1.25081,1599.5,1599.4,4.45861]
[1744894037177,1.25081,1599.5,1599.4,3.2078]
[1744894037674,1.25081,1599.5,1599.4,4.45861]
[1744894037874,1.25081,1599.5,1599.4,6.16561]
[1744894038073,1.25081,1599.5,1599.4,4.9148]
[1744894038377,2.91581,1599.5,1599.4,4.9148]
[1744894041384,2.91581,1599.5,1599.4,6.16561]
[1744894041777,2.91581,1599.5,1599.4,4.9148]
[1744894043881,2.91581,1599.5,1599.4,3.2078]
[1744894045485,6.13298792,1599.5,1599.4,3.2078]
[1744894047386,3.12708,1599.4,1599.2,3.2078]
[1744894047588,5.55358,1599.4,1599.2,3.2078]
[1744894047780,2.84539,1599.3,1599.2,3.2078]
[1744894050087,1.5945,1599.3,1599.2,4.45877]
[1744894050282,1.5945,1599.3,1599.2,6.18217]
[1744894050593,1.5945,1599.3,1599.2,6.98997]
[1744894051390,2.84539,1599.3,1599.2,6.98997]
[1744894053098,2.84539,1599.3,1599.2,4.0156]
[1744894053484,2.84539,1599.3,1599.2,5.26657]
[1744894053684,2.84539,1599.3,1599.2,3.2078]
[1744894053885,6.06256792,1599.3,1599.2,3.2078]
[1744894054185,6.06256792,1599.3,1599.2,4.45877]
[1744894054381,6.06256792,1599.3,1599.2,3.2078]
[1744894055297,6.06256792,1599.3,1599.2,4.45877]
[1744894055501,2.84539,1599.3,1599.2,4.45877]
[1744894056794,2.84539,1599.3,1599.2,3.2078]
[1744894058984,2.84539,1599.3,1599.2,4.45877]
[1744894060992,2.84539,1599.3,1599.2,3.2078]
[1744894062502,2.84539,1599.3,1599.2,4.45877]
[1744894064301,2.84539,1599.3,1599.2,3.2078]
[1744894065297,2.84539,1599.3,1599.2,4.45877]
[1744894065701,2.84539,1599.3,1599.2,3.2078]
[1744894066001,6.06256792,1599.3,1599.2,3.2078]
[1744894067307,1.25105,1599.1,1599.0,5.31436]
[1744894067697,2.96545,1599.1,1599.0,5.31436]
[1744894069303,7.30393,1599.5,1599.2,1.25088]
[1744894069608,7.30393,1599.5,1599.3,0.871]
[1744894069609,1.25081,1599.4,1599.3,0.871]
[1744894069798,3.81271,1599.4,1599.3,0.871]
[1744894069994,4.67361,1599.4,1599.3,0.871]
[1744894070207,1.25089,1599.3,1599.2,3.2078]
[1744894070505,3.00709,1599.3,1599.2,3.2078]
[1744894072001,6.22426792,1599.3,1599.2,3.2078]
[1744894072910,6.22426792,1599.3,1599.2,4.45877]
[1744894074412,6.22426792,1599.3,1599.2,3.2078]
[1744894075112,6.22426792,1599.3,1599.2,4.45877]
[1744894079511,4.177,1599.5,1599.2,6.19027]
[1744894079710,3.21717792,1599.5,1599.4,3.2078]
[1744894079914,4.91707792,1599.5,1599.4,3.2078]
[1744894080116,4.91707792,1599.5,1599.4,5.8004]
[1744894080714,6.16785792,1599.5,1599.4,3.2078]
[1744894081712,6.16785792,1599.5,1599.4,4.45861]
[1744894081914,2.95068,1599.5,1599.4,4.45861]
[1744894082113,2.95068,1599.5,1599.4,7.05121]
[1744894082616,2.95068,1599.5,1599.4,5.31971]
[1744894084519,2.95068,1599.5,1599.4,7.00141]
[1744894085416,1.26008792,1599.6,1599.5,1.25074]
[1744894085618,2.96098792,1599.6,1599.5,2.96124]
[1744894086520,1.25074,1599.5,1599.4,5.31965]
[1744894086717,2.95164,1599.5,1599.4,5.31965]
[1744894086914,2.95164,1599.5,1599.4,7.03015]
[1744894088715,1.7009,1599.5,1599.4,7.03015]
[1744894088915,0.00937792,1599.6,1599.5,1.25074]
[1744894089114,0.00937792,1599.6,1599.5,2.89874]
[1744894089620,1.26003792,1599.6,1599.5,2.89874]
[1744894089921,0.00937792,1599.6,1599.5,2.89874]
[1744894090721,1.26003792,1599.6,1599.5,2.89874]
[1744894091622,1.26003792,1599.6,1599.5,1.25074]
[1744894091822,5.28021584,1599.6,1599.5,1.25074]
[1744894092021,6.91901584,1599.6,1599.5,1.25074]
[1744894092820,1.25074,1599.5,1599.4,5.8126]
[1744894093019,2.88954,1599.5,1599.4,3.2078]
[1744894093222,6.10671792,1599.5,1599.4,3.2078]
[1744894093723,6.10671792,1599.5,1599.4,4.45861]
[1744894096427,4.85597792,1599.5,1599.4,4.45861]
[1744894096624,4.85597792,1599.5,1599.4,6.16351]
[1744894096826,1.6388,1599.5,1599.4,6.16351]
[1744894097928,6.10671792,1599.5,1599.4,4.45861]
[1744894104431,4.85597792,1599.5,1599.4,4.45861]
[1744894104625,2.88954,1599.5,1599.4,6.18541]
[1744894105131,6.10671792,1599.5,1599.4,4.45861]
[1744894115043,4.85597792,1599.5,1599.4,4.45861]
[1744894115345,6.10671792,1599.5,1599.4,4.45861]
[1744894115643,2.88954,1599.5,1599.4,6.22381]
[1744894115837,1.26008792,1599.6,1599.5,1.25074]
[1744894116042,1.26008792,1599.6,1599.5,2.99844]
[1744894116243,2.91838792,1599.6,1599.5,2.99844]
[1744894116441,2.91838792,1599.6,1599.5,3.80964]
[1744894116642,2.91838792,1599.6,1599.5,2.06194]
[1744894117141,2.91838792,1599.6,1599.5,1.25074]
[1744894121445,2.91838792,1599.6,1599.5,3.00784]
[1744894122648,1.66767792,1599.6,1599.5,3.00784]
[1744894123147,0.00937792,1599.6,1599.5,3.00784]
[1744894126750,1.69777792,1599.6,1599.5,3.00784]
[1744894133557,2.94843792,1599.6,1599.5,3.00784]
[1744894136055,1.69777792,1599.6,1599.5,3.00784]
[1744894136359,2.94843792,1599.6,1599.5,3.00784]
[1744894136563,2.94843792,1599.6,1599.5,1.25074]
[1744894136766,1.25074,1599.5,1599.4,4.45861]
[1744894137060,3.75554,1599.5,1599.4,4.45861]
[1744894137353,6.97271792,1599.5,1599.4,4.45861]
[1744894137757,5.72197792,1599.5,1599.4,4.45861]
[1744894140252,6.97271792,1599.5,1599.4,4.45861]
[1744894140858,5.72197792,1599.5,1599.4,4.45861]
[1744894144468,6.97271792,1599.5,1599.4,4.45861]
[1744894145066,5.72197792,1599.5,1599.4,4.45861]
[1744894145969,6.97271792,1599.5,1599.4,4.45861]
[1744894147571,5.72197792,1599.5,1599.4,4.45861]
[1744894148372,0.00937792,1599.6,1599.5,1.25074]
[1744894148668,1.69387792,1599.6,1599.5,3.68424]
[1744894161374,3.12595,1600.0,1599.5,3.68424]
[1744894161375,10.38083332,1600.2,1600.0,1.25035]
[1744894161579,5.26761792,1600.1,1600.0,4.45815]
[1744894162380,5.26761792,1600.1,1600.0,3.2078]
[1744894162576,5.26761792,1600.1,1600.0,4.45815]
[1744894162776,7.77211792,1600.1,1600.0,4.45815]
[1744894164378,6.25175,1600.0,1599.7,8.32110393]
[1744894164584,1.2505,1599.8,1599.7,8.32110393]
[1744894164884,1.2505,1599.8,1599.7,9.57168393]
[1744894165176,3.7691,1599.8,1599.7,9.57168393]
[1744894166284,3.7691,1599.8,1599.7,1.25058]
[1744894168086,2.5186,1599.8,1599.7,1.25058]
[1744894168385,1.6881,1599.8,1599.7,2.12308]
[1744894168576,1.6881,1599.8,1599.7,4.71688]
[1744894169690,1.6881,1599.8,1599.7,2.12308]
[1744894169987,3.7679,1599.8,1599.7,1.25058]
[1744894171890,1.25058,1599.7,1599.6,4.46776792]
[1744894172090,3.86928,1599.7,1599.6,4.46776792]
[1744894179203,3.86928,1599.7,1599.6,3.21717792]
[1744894179409,3.86928,1599.7,1599.6,4.46783792]
[1744894180802,3.86928,1599.7,1599.6,7.69153792]
[1744894181409,3.86928,1599.7,1599.6,4.46783792]
[1744894181606,1.25044,1600.0,1599.9,1.25036]
[1744894181810,2.90944,1600.0,1599.9,1.25036]
[1744894181998,1.25042,1599.9,1599.8,1.25045]
[1744894183109,2.90312,1599.9,1599.8,1.25045]
[1744894183698,1.25058,1599.8,1599.7,1.25053]
[1744894183903,1.25058,1599.7,1599.6,4.46775792]
[1744894184202,2.07088,1599.7,1599.6,4.46775792]
[1744894184405,3.72358,1599.7,1599.6,4.46775792]
[1744894185508,2.473,1599.7,1599.6,4.46775792]
[1744894185807,2.473,1599.7,1599.6,5.26645792]
[1744894186106,2.473,1599.7,1599.6,7.84115792]
[1744894187713,3.72358,1599.7,1599.6,7.84115792]
[1744894188010,2.473,1599.7,1599.6,7.84115792]
[1744894188412,3.72358,1599.7,1599.6,7.84115792]
[1744894188601,2.473,1599.7,1599.6,7.84115792]
[1744894189203,3.72358,1599.7,1599.6,7.84115792]
[1744894189403,3.72358,1599.7,1599.6,6.11405792]
[1744894194517,3.72358,1599.7,1599.6,4.46775792]
[1744894200319,3.72358,1599.7,1599.6,0.00937792]
[1744894201119,7.89058,1599.7,1599.6,0.00937792]
[1744894203222,16.09838,1599.7,1599.6,0.00937792]
[1744894203627,16.09838,1599.7,1599.6,7.92e-06]
[1744894204920,56.89838,1599.7,1599.6,7.92e-06]
[1744894206422,53.69058,1599.7,1599.6,7.92e-06]
[1744894208528,48.69058,1599.7,1599.6,7.92e-06]
[1744894212434,51.89838,1599.7,1599.6,7.92e-06]
[1744894217736,118.2925369,1599.7,1598.8,12.78012393]
[1744894217937,1.25113,1599.1,1599.0,1.25109]
[1744894218141,1.25113,1599.1,1599.0,2.86589]
[1744894218343,1.25113,1599.1,1599.0,6.07369]
[1744894218835,1.25105,1599.2,1599.1,1.251]
[1744894219026,1.26042792,1599.2,1599.1,3.667]
[1744894219233,1.26042792,1599.2,1599.1,8.667]
[1744894219441,0.00937792,1599.2,1599.1,8.667]
[1744894220944,1.26034792,1599.2,1599.1,8.667]
[1744894221543,1.26034792,1599.2,1599.1,2.416]
[1744894223943,1.26034792,1599.2,1599.1,3.66705]
[1744894224242,0.00937792,1599.2,1599.1,3.66705]
[1744894225443,5.41674,1599.5,1599.4,1.25081]
[1744894225638,1.25074,1599.5,1599.4,4.45861]
[1744894225838,1.25074,1599.5,1599.4,6.89841]
[1744894226043,1.25073,1599.6,1599.5,1.25074]
[1744894226242,1.25073,1599.6,1599.5,3.70934]
[1744894226842,7.08841792,1599.7,1599.6,1.25066]
[1744894227133,5.42601792,1599.7,1599.6,6.89826]
[1744894227333,1.26001792,1599.7,1599.6,6.89826]
[1744894228739,1.26001792,1599.7,1599.6,5.6476]
[1744894228936,1.26001792,1599.7,1599.6,4.0375]
[1744894229138,2.08971792,1599.7,1599.6,4.0375]
[1744894229337,3.83911792,1599.7,1599.6,4.0375]
[1744894229845,3.83911792,1599.7,1599.6,3.2078]
[1744894233147,3.83911792,1599.7,1599.6,4.45846]
[1744894233645,3.83911792,1599.7,1599.6,6.07686]
[1744894233947,3.83911792,1599.7,1599.6,4.8262]
[1744894235844,3.00941792,1599.7,1599.6,6.07686]
[1744894236045,3.00941792,1599.7,1599.6,4.8262]
[1744894236845,3.00941792,1599.7,1599.6,6.07686]
[1744894237046,1.26001792,1599.7,1599.6,6.07686]
[1744894238538,0.00937792,1599.7,1599.6,6.07686]
[1744894238943,1.25995792,1599.7,1599.6,6.07686]
[1744894240652,1.25995792,1599.7,1599.6,4.8262]
[1744894240851,2.91005792,1599.7,1599.6,3.2078]
[1744894241055,3.70685792,1599.7,1599.6,3.2078]
[1744894241956,3.70685792,1599.7,1599.6,4.45846]
[1744894243160,3.70685792,1599.7,1599.6,6.05996]
[1744894243859,2.91005792,1599.7,1599.6,6.05996]
[1744894247469,2.91005792,1599.7,1599.6,4.8093]
[1744894247768,3.75135792,1599.7,1599.6,3.2078]
[1744894247961,3.75135792,1599.7,1599.6,4.45846]
[1744894249770,2.91005792,1599.7,1599.6,6.12876]
[1744894250178,2.91005792,1599.7,1599.6,3.2078]
[1744894253576,2.91005792,1599.7,1599.6,4.45846]
[1744894253871,2.91005792,1599.7,1599.6,6.21846]
[1744894254071,2.91005792,1599.7,1599.6,7.09756]
[1744894256278,1.25995792,1599.7,1599.6,7.09756]
[1744894256773,0.00937792,1599.7,1599.6,7.09756]
[1744894257074,1.25995792,1599.7,1599.6,7.09756]
[1744894263782,2.90165792,1599.7,1599.6,7.09756]
[1744894265076,2.90165792,1599.7,1599.6,5.33756]
[1744894265276,3.77535792,1599.7,1599.6,5.33756]
[1744894265475,2.90165792,1599.7,1599.6,5.33756]
[1744894265678,2.90165792,1599.7,1599.6,6.96086]
[1744894268988,1.65107792,1599.7,1599.6,6.96086]
[1744894269490,0.00937792,1599.7,1599.6,6.96086]
[1744894269876,0.00937792,1599.7,1599.6,11.12386]
[1744894274385,0.00937792,1599.7,1599.6,19.44496393]
[1744894274591,6.232,1600.1,1599.8,1.2505]
[1744894274891,7.8823,1600.1,1600.0,4.45815]
[1744894275092,2.469,1600.1,1600.0,4.45815]
[1744894275389,3.71927,1600.1,1600.0,4.45815]
[1744894275789,2.469,1600.1,1600.0,4.45815]
[1744894277487,1.6503,1600.1,1600.0,6.21745]
[1744894279410,10.38083332,1600.6,1600.1,3.12567]
[1744894279694,12.01803332,1600.6,1600.5,4.45775]
[1744894279991,13.26791332,1600.6,1600.5,7.3678]
[1744894280194,13.26791332,1600.6,1600.5,8.61775]
[1744894280387,12.01803332,1600.6,1600.5,8.61775]
[1744894281494,3.312975,1600.6,1600.5,16.14255]
[1744894281695,1.899535,1600.6,1600.5,16.14255]
[1744894281993,0.600665,1600.6,1600.5,16.14255]
[1744894282189,5e-06,1600.6,1600.5,16.14255]
[1744894282592,1.7289,1600.9,1600.8,1.24972]
[1744894282896,1.71970477,1600.9,1600.8,8.61652]
[1744894284495,1.71970477,1600.9,1600.8,11.05012]
[1744894285991,0.8537,1601.0,1600.9,1.24964]
[1744894286197,1.7447,1601.1,1601.0,1.24956]
[1744894286396,1.7447,1601.1,1601.0,4.45736]
[1744894286599,2.5958,1601.1,1601.0,4.45736]
[1744894286798,1.7447,1601.1,1601.0,5.26656]
[1744894288295,0.8509,1601.3,1601.2,1.24941]
[1744894288489,2.458,1601.3,1601.2,8.61521]
[1744894291499,3.70733,1601.3,1601.2,3.2078]
[1744894291999,1.24949,1601.1,1601.0,3.2078]
[1744894293803,1.24949,1601.1,1601.0,4.45736]
[1744894295195,0.8227,1601.1,1601.0,4.45736]
[1744894295600,2.5213,1601.1,1601.0,4.45736]
[1744894296902,2.5213,1601.1,1601.0,6.06556]
[1744894297602,2.5213,1601.1,1601.0,4.45736]
[1744894298104,3.77079,1601.1,1601.0,4.45736]
[1744894298505,2.5213,1601.1,1601.0,4.45736]
[1744894298707,3.77079,1601.1,1601.0,4.45736]
[1744894299304,2.5213,1601.1,1601.0,4.45736]
[1744894299606,3.77079,1601.1,1601.0,4.45736]
[1744894301402,2.5213,1601.1,1601.0,4.45736]
[1744894301704,3.77079,1601.1,1601.0,4.45736]
[1744894303208,2.5213,1601.1,1601.0,4.45736]
[1744894303506,3.77079,1601.1,1601.0,4.45736]
[1744894304008,2.5213,1601.1,1601.0,4.45736]
[1744894304609,3.77079,1601.1,1601.0,4.45736]
[1744894309815,3.77079,1601.1,1601.0,3.2078]
[1744894311718,1.24964,1600.9,1600.8,0.00937792]
[1744894311908,1.24995,1600.5,1600.4,3.2078]
[1744894312217,1.24995,1600.5,1600.4,3.19860477]
[1744894312610,1.25011,1600.3,1600.2,1.25012]
[1744894312809,1.25011,1600.3,1600.2,4.45792]
[1744894313412,3.80781,1600.3,1600.2,4.45792]
[1744894313610,3.80781,1600.3,1600.2,3.2078]
[1744894313816,1.25019,1600.2,1600.1,8.33048185]
[1744894314111,2.86489,1600.2,1600.1,8.33048185]
[1744894314412,11.07269,1600.2,1600.1,7.05733185]
[1744894314617,1.25027,1600.1,1600.0,12.46663375]
[1744894314814,2.86497,1600.1,1600.0,12.43734352]
[1744894315012,1.2505,1599.8,1599.7,3.2078]
[1744894315407,6.2505,1599.8,1599.7,3.2078]
[1744894315918,1.25058,1599.7,1599.6,0.00937792]
[1744894316121,2.86528,1599.7,1599.6,0.00937792]
[1744894316323,2.86528,1599.7,1599.6,1.26003792]
[1744894318720,1.6147,1599.7,1599.6,1.26003792]
[1744894318922,1.2505,1599.8,1599.6,0.00937792]
[1744894319113,1.2505,1599.8,1599.7,6.08852]
[1744894319314,1.2505,1599.8,1599.7,4.838]
[1744894319513,1.2505,1599.8,1599.7,3.2078]
[1744894319714,1.2505,1599.8,1599.7,4.45838]
[1744894319917,2.99548,1599.9,1599.7,3.2078]
[1744894320117,3.97632,1600.3,1600.0,1.25034]
[1744894320317,1.6613,1600.3,1600.2,1.25019]
[1744894320516,1.6613,1600.3,1600.1,1.6789]
[1744894320721,2.91147,1600.3,1600.2,1.25019]
[1744894320919,1.6613,1600.3,1600.2,4.45799]
[1744894321116,0.00937792,1600.4,1600.3,1.25011]
[1744894321423,1.25940792,1600.4,1600.2,4.45793]
[1744894321617,1.25011,1600.3,1600.2,4.8867]
[1744894321816,2.85501,1600.3,1600.2,4.8867]
[1744894322013,1.25948792,1600.4,1600.2,6.13689]
[1744894322214,1.25011,1600.3,1600.2,4.45799]
[1744894322417,2.85501,1600.3,1600.2,4.45799]
[1744894323325,1.6049,1600.3,1600.2,4.45799]
[1744894323720,0.00937792,1600.4,1600.3,1.25011]
[1744894323924,0.00937792,1600.4,1600.3,2.93781]
[1744894324118,0.00937792,1600.4,1600.3,3.73761]
[1744894324320,1.25940792,1600.4,1600.3,3.73761]
[1744894324619,2.92950792,1600.4,1600.3,3.73761]
[1744894324831,1.67947792,1600.4,1600.3,1.25011]
[1744894325023,2.92950792,1600.4,1600.3,1.25011]
[1744894325526,2.92950792,1600.4,1600.3,2.93781]
[1744894325725,1.67947792,1600.4,1600.3,2.93781]
[1744894326918,2.92950792,1600.4,1600.3,2.93781]
[1744894327119,2.92950792,1600.4,1600.2,5.25776]
[1744894327120,1.25011,1600.3,1600.2,5.25776]
[1744894327320,1.7555,1600.3,1600.2,5.25776]
[1744894327525,3.00561,1600.3,1600.2,5.25776]
[1744894328216,1.7555,1600.3,1600.2,5.25776]
[1744894328421,3.00561,1600.3,1600.2,5.25776]
[1744894328825,3.00561,1600.3,1600.2,4.0076]
[1744894329021,3.00561,1600.3,1600.2,3.2078]
[1744894330034,3.00561,1600.3,1600.2,4.45799]
[1744894331028,3.00561,1600.3,1600.2,3.2078]
[1744894331423,3.82431,1600.3,1600.2,3.2078]
[1744894332328,3.82431,1600.3,1600.2,4.45799]
[1744894334633,1.7555,1600.3,1600.2,4.45799]
[1744894335329,3.00561,1600.3,1600.2,4.45799]
[1744894336130,3.00561,1600.3,1600.2,3.2078]
[1744894336831,3.00561,1600.3,1600.2,4.45799]
[1744894337324,3.00561,1600.3,1600.2,3.2078]
[1744894337840,3.00561,1600.3,1600.2,4.45799]
[1744894338136,3.00561,1600.3,1600.2,3.2078]
[1744894338933,8.00561,1600.3,1600.2,3.2078]
[1744894339143,1.25035,1600.0,1599.9,2.08239]
[1744894339339,1.6153,1600.2,1600.1,1.25027]
[1744894339542,0.86757792,1600.4,1600.3,1.25011]
[1744894339744,1.62467792,1600.4,1600.3,4.45791]
[1744894339937,0.00937792,1600.4,1600.3,6.95391]
[1744894341240,1.24968,1600.9,1600.8,1.24962]
[1744894341543,1.24956,1601.0,1600.9,1.25877523]
[1744894341937,2.98356477,1601.0,1600.9,4.45738]
[1744894342541,2.98356477,1601.0,1600.9,3.2078]
[1744894344851,1.24964,1600.9,1600.8,0.00937792]
[1744894345147,3.68574,1600.9,1600.8,0.00937792]
[1744894345345,8.68574,1600.9,1600.8,0.00937792]
[1744894345553,3.68574,1600.9,1600.8,0.00937792]
[1744894347656,6.89354,1600.9,1600.8,0.00937792]
[1744894347857,11.89354,1600.9,1600.8,0.00937792]
[1744894348160,8.68574,1600.9,1600.8,0.00937792]
[1744894348349,11.89354,1600.9,1600.8,0.00937792]
[1744894350457,1.24995,1600.5,1600.4,1.24998]
[1744894350649,1.24995,1600.5,1600.4,1.24078477]
[1744894351258,2.88535,1600.5,1600.4,1.24078477]
[1744894351954,1.6354,1600.5,1600.4,1.24078477]
[1744894352155,1.6354,1600.5,1600.4,3.00558477]
[1744894352458,2.88535,1600.5,1600.4,3.00558477]
[1744894354963,1.25003,1600.4,1600.3,4.46722792]
[1744894355162,2.87613,1600.4,1600.3,4.46722792]
[1744894355565,2.87613,1600.4,1600.3,6.09682792]
[1744894356063,2.87613,1600.4,1600.3,3.21717792]
[1744894357366,2.87613,1600.4,1600.3,4.46728792]
[1744894358564,2.87613,1600.4,1600.3,3.21717792]
[1744894358760,2.87613,1600.4,1600.3,0.00937792]
[1744894372279,43.67613,1600.4,1600.3,0.00937792]
[1744894373776,2.87613,1600.4,1600.3,0.00937792]
[1744894382174,1.25003,1600.4,1600.3,1.25948792]
[1744894382374,1.25002,1600.5,1600.4,1.24995]
[1744894382583,1.25002,1600.5,1600.4,2.08085]
[1744894382883,1.25002,1600.5,1600.4,3.70895]
[1744894383280,2.90502,1600.5,1600.4,3.70895]
[1744894384072,2.90502,1600.5,1600.4,0.8309]
[1744894384776,1.25003,1600.4,1600.3,1.25948792]
[1744894384976,2.98653,1600.4,1600.3,1.25948792]
[1744894385177,2.98653,1600.4,1600.3,3.72518792]
[1744894387387,1.25003,1600.4,1600.3,3.72518792]
[1744894391886,2.86473,1600.4,1600.3,3.72518792]
[1744894392189,2.86473,1600.4,1600.3,2.47507792]
[1744894392381,2.86473,1600.4,1600.3,0.00937792]
[1744894399595,7.86473,1600.4,1600.3,7.92e-06]
[1744894400387,7.97963714,1600.4,1600.3,7.92e-06]
[1744894401590,2.86473,1600.4,1600.3,7.92e-06]
[1744894409391,2.86473,1600.4,1600.3,0.86490792]
[1744894409593,2.86473,1600.4,1600.3,2.99221792]
[1744894410098,1.25003,1600.4,1600.3,1.74210792]
[1744894410494,1.25003,1600.4,1600.3,3.35480792]
[1744894410693,2.90843,1600.4,1600.3,3.35480792]
[1744894413702,2.90843,1600.4,1600.3,6.56260792]
[1744894416506,2.90843,1600.4,1600.3,7.81271792]
[1744894416706,1.25003,1600.4,1600.3,7.81271792]
[1744894416904,1.24994,1600.6,1600.5,1.24995]
[1744894417101,11.60923138,1600.7,1600.6,1.24988]
[1744894417300,11.60923138,1600.7,1600.6,4.54958]
[1744894418299,11.60923138,1600.7,1600.6,9.54958]
[1744894418998,13.26879998,1601.0,1600.6,8.2997]
[1744894418999,3.94633,1601.0,1600.6,8.2997]
[1744894419306,1.24049477,1600.9,1600.8,4.45744]
[1744894419896,1.24049477,1600.9,1600.8,3.2078]
[1744894420301,1.24049477,1600.9,1600.8,4.45752]
[1744894420813,1.24049477,1600.9,1600.8,3.2078]
[1744894421006,1.24049477,1600.9,1600.8,4.45752]
[1744894423314,1.24049477,1600.9,1600.8,3.2078]
[1744894423613,2.10129477,1600.9,1600.8,3.2078]
[1744894424111,3.85559477,1600.9,1600.8,3.2078]
[1744894424807,1.2498,1600.7,1600.6,4.0126]
[1744894425013,1.2498,1600.7,1600.6,3.2078]
[1744894425213,3.0041,1600.7,1600.6,3.2078]
[1744894426616,1.7543,1600.7,1600.6,1.24988]
[1744894426810,1.24997,1600.5,1600.4,3.2078]
[1744894427417,1.24997,1600.5,1600.4,4.45783]
[1744894427616,2.86257,1600.5,1600.4,3.2078]
[1744894427817,3.73377,1600.5,1600.4,3.2078]
[1744894428516,2.86257,1600.5,1600.4,3.2078]
[1744894428717,2.86257,1600.5,1600.4,5.33133]
[1744894428917,2.86257,1600.5,1600.4,4.0813]
[1744894430119,2.86257,1600.5,1600.4,3.2078]
[1744894430419,3.73377,1600.5,1600.4,3.2078]
[1744894430821,1.25003,1600.4,1600.3,7.92e-06]
[1744894431022,2.95003,1600.4,1600.3,7.92e-06]
[1744894432821,7.95003,1600.4,1600.3,7.92e-06]
[1744894434119,2.95003,1600.4,1600.3,7.92e-06]
[1744894442024,2.95003,1600.4,1600.3,6.98921792]
[1744894442320,1.25002,1600.5,1600.4,1.24999]
[1744894442520,1.25002,1600.5,1600.4,2.98079]
[1744894443727,2.989,1600.6,1600.5,1.24995]
[1744894443931,1.2499,1600.6,1600.5,7.02975]
[1744894445221,1.2499,1600.6,1600.5,5.7798]
[1744894445515,1.2499,1600.6,1600.5,4.049]
[1744894445916,2.8523,1600.6,1600.5,4.049]
[1744894446124,1.2499,1600.6,1600.5,4.049]
[1744894446427,1.2499,1600.6,1600.5,5.6947]
[1744894446627,2.8523,1600.6,1600.5,5.6947]
[1744894447129,2.8523,1600.6,1600.5,6.94465]
[1744894447633,2.8523,1600.6,1600.5,4.049]
[1744894448131,2.8523,1600.6,1600.5,5.29895]
[1744894448727,2.8523,1600.6,1600.5,4.049]
[1744894449431,2.8523,1600.6,1600.5,3.2078]
[1744894449925,1.24995,1600.5,1600.4,2.5261]
[1744894450127,4.74725,1600.5,1600.4,2.5261]
[1744894451030,4.74725,1600.5,1600.4,0.7973]
[1744894451527,4.74725,1600.5,1600.3,5.67400792]
[1744894451731,2.99933,1600.4,1600.3,6.51720792]
[1744894452133,2.99933,1600.4,1600.3,7.76731792]
[1744894452725,2.99933,1600.4,1600.3,6.51720792]
[1744894453932,2.99933,1600.4,1600.3,7.76731792]
[1744894454230,1.25002,1600.5,1600.4,1.25003]
[1744894454431,1.25002,1600.5,1600.4,3.00823]
[1744894454735,1.25003,1600.4,1600.3,6.10155792]
[1744894455333,1.25003,1600.4,1600.3,7.85975792]
[1744894456629,2.95243,1600.5,1600.4,1.25003]
[1744894456829,1.24994,1600.6,1600.5,1.24988]
[1744894457034,1.24986,1600.7,1600.6,1.2498]
[1744894457225,1.24977,1600.8,1600.7,2.9697]
[1744894457531,1.24969,1600.9,1600.8,1.24965]
[1744894457830,1.24969,1600.9,1600.8,2.96955]
[1744894458235,2.90892,1601.0,1600.9,1.24964]
[1744894458432,2.90892,1601.0,1600.9,7.81674]
[1744894459935,0.00937792,1601.1,1601.0,1.24956]